fUST/lending_fUST_20250608
["ID","MTS","AMOUNT","RATE_DAILY","PERIOD"]
[364981503,1749377445929,-153.0,0.00021918,2]
[364981504,1749377445939,-153.0,0.00021918,2]
[364981505,1749377445950,-153.0,0.00021918,2]
[364981506,1749377445960,-153.0,0.00021918,2]
[364981507,1749377445970,-153.0,0.00021918,2]
[364981508,1749377445980,-153.0,0.00021918,2]
[364981509,1749377445989,-153.0,0.00021918,2]
[364981510,1749377445999,-153.0,0.00021918,2]
[364981511,1749377446009,-153.0,0.00021918,2]
[364981512,1749377446019,-153.0,0.00021918,2]
[364981513,1749377446029,-153.0,0.00021918,2]
[364981514,1749377446039,-153.0,0.00021918,2]
[364981515,1749377446050,-153.0,0.00021918,2]
[364981516,1749377446060,-153.0,0.00021918,2]
[364981517,1749377446071,-153.0,0.00021918,2]
[364981519,1749377446080,-153.0,0.00021918,2]
[364981521,1749377446089,-153.0,0.00021918,2]
[364981523,1749377446100,-153.0,0.00021918,2]
[364981525,1749377446109,-153.0,0.00021918,2]
[364981527,1749377446119,-153.0,0.00021918,2]
[364981529,1749377446130,-153.0,0.00021918,2]
[364981530,1749377446141,-153.0,0.00021918,2]
[364981531,1749377446151,-800.0,0.00021927,2]
[364981532,1749377446161,-412.0,0.00021974,2]
[364981533,1749377446172,-1300.0,0.00021979,2]
[364981534,1749377446186,-121624.73,0.00022,7]
[364981535,1749377446197,-1534.5,0.00022,7]
[364981536,1749377446207,-171.0,0.00022,2]
[364981537,1749377446219,-842.5625,0.00022,7]
[364981538,1749377446229,-155.0,0.00022,2]
[364981539,1749377446239,-500.0,0.00022047,2]
[364981540,1749377446249,-500.0,0.00022047,2]
[364981541,1749377446259,-6028.59,0.00022084,2]
[364981542,1749377446269,-500.0,0.000221,2]
[364981543,1749377446279,-500.0,0.000221,2]
[364981544,1749377446289,-500.0,0.000221,2]
[364981545,1749377446299,-500.0,0.000221,2]
[364981546,1749377446310,-500.0,0.000221,2]
[364981548,1749377446320,-500.0,0.000221,2]
[364981550,1749377446330,-500.0,0.000221,2]
[364981551,1749377446340,-500.0,0.000221,2]
[364981552,1749377446350,-469.09706891,0.000221,2]
[364981553,1749377446360,-500.0,0.000221,2]
[364981554,1749377446370,-500.0,0.000221,2]
[364981555,1749377446380,-501.34823422,0.00022109,2]
[364981556,1749377446390,-500.0,0.00022109,2]
[364981557,1749377446400,-500.0,0.00022109,2]
[364981558,1749377446409,-502.16556292,0.00022109,2]
[364981559,1749377446420,-500.0,0.00022109,2]
[364981560,1749377446430,-504.14233961,0.00022109,2]
[364981561,1749377446439,-501.83712656,0.00022109,2]
[364981562,1749377446450,-500.0,0.00022109,2]
[364981563,1749377446460,-479.68947817,0.00022109,2]
[364981564,1749377446470,-500.0,0.00022109,2]
[364981565,1749377446480,-600.0,0.00022109,2]
[364981566,1749377446489,-500.0,0.00022109,2]
[364981567,1749377446499,-500.0,0.00022109,2]
[364981568,1749377446509,-595.88,0.00022191,4]
[364981569,1749377446519,-621.46,0.00022191,4]
[364981570,1749377446530,-460.53,0.00022191,4]
[364981571,1749377446543,-572.71,0.00022191,4]
[364981572,1749377446553,-1377.15,0.00022191,4]
[364981573,1749377446563,-956.96,0.00022191,4]
[364981574,1749377446573,-543.14,0.00022191,4]
[364981575,1749377446583,-440.0,0.00022191,4]
[364981576,1749377446594,-1506.3,0.00022191,4]
[364981577,1749377446604,-1466.18,0.00022191,4]
[364981578,1749377446614,-1390.15,0.00022191,4]
[364981579,1749377446624,-440.0,0.00022191,4]
[364981580,1749377446634,-440.0,0.00022191,4]
[364981581,1749377446644,-871.2,0.00022191,4]
[364981582,1749377446654,-1354.75,0.00022191,4]
[364981583,1749377446664,-1432.59,0.00022191,4]
[364981584,1749377446674,-443.61,0.00022191,4]
[364981585,1749377446684,-315.40615271,0.00022191,4]
[364981586,1749377446695,-472.93256888,0.000222,69]
[364981587,1749377446704,-472.93256885,0.000222,69]
[364981588,1749377446714,-472.93256885,0.000222,69]
[364981589,1749377446724,-800.0,0.00022212,2]
[364981590,1749377446733,-159.58732754,0.00022323,2]
[364981591,1749377446743,-800.0,0.00022375,2]
[364981592,1749377446752,-789.35,0.000224,7]
[364981593,1749377446762,-500.0,0.00022465,2]
[364981594,1749377446771,-595.88,0.00022465,4]
[364981595,1749377446781,-621.46,0.00022465,4]
[364981596,1749377446791,-460.53,0.00022465,4]
[364981597,1749377446801,-572.71,0.00022465,4]
[364981598,1749377446810,-1377.15,0.00022465,4]
[364981599,1749377446820,-956.96,0.00022465,4]
[364981600,1749377446830,-543.14,0.00022465,4]
[364981601,1749377446839,-440.0,0.00022465,4]
[364981602,1749377446849,-1506.3,0.00022465,4]
[364981603,1749377446858,-1466.18,0.00022465,4]
[364981604,1749377446868,-1390.15,0.00022465,4]
[364981605,1749377446878,-440.0,0.00022465,4]
[364981606,1749377446887,-440.0,0.00022465,4]
[364981607,1749377446897,-871.2,0.00022465,4]
[364981608,1749377446906,-1354.75,0.00022465,4]
[364981609,1749377446917,-1432.59,0.00022465,4]
[364981610,1749377446927,-443.61,0.00022465,4]
[364981611,1749377446937,-207.4,0.0002255,2]
[364981612,1749377446947,-500.0,0.0002255,2]
[364981613,1749377446956,-500.0,0.0002255,2]
[364981614,1749377446966,-500.0,0.0002255,2]
[364981615,1749377446976,-5000.0,0.0002255,2]
[364981616,1749377446985,-500.0,0.0002255,2]
[364981617,1749377446995,-500.0,0.0002255,2]
[364981618,1749377447005,-500.0,0.0002255,2]
[364981619,1749377447014,-500.0,0.0002255,2]
[364981620,1749377447024,-500.0,0.0002255,2]
[364981621,1749377447034,-500.0,0.0002255,2]
[364981622,1749377447043,-500.0,0.0002255,2]
[364981623,1749377447053,-500.0,0.0002255,2]
[364981624,1749377447062,-500.0,0.0002255,2]
[364981625,1749377447072,-461.42873487,0.0002255,2]
[364981626,1749377447082,-1000.0,0.00022595,2]
[364981627,1749377447092,-1001.54891852,0.00022595,2]
[364981628,1749377447104,-5000.0,0.00022603,2]
[364981629,1749377447114,-1001.73158183,0.00022648,2]
[364981630,1749377447124,-503.13190723,0.00022648,2]
[364981631,1749377447134,-501.14582777,0.00022648,2]
[364981632,1749377447144,-571.66149766,0.00022648,2]
[364981633,1749377447154,-1002.14087963,0.00022648,2]
[364981634,1749377447164,-1002.01125953,0.00022648,2]
[364981635,1749377447174,-1000.0,0.00022648,2]
[364981636,1749377447186,-1000.0,0.00022648,2]
[364981637,1749377447196,-1001.54662461,0.00022648,2]
[364981638,1749377447206,-800.0,0.00022651,2]
[364981639,1749377447215,-1000.0,0.00022657,2]
[364981640,1749377447225,-1000.0,0.00022657,2]
[364981641,1749377447234,-1000.0,0.00022657,2]
[364981642,1749377447244,-1000.0,0.00022657,2]
[364981643,1749377447254,-1001.50791894,0.00022657,2]
[364981644,1749377447263,-1200.0,0.00022657,2]
[364981645,1749377447273,-1000.0,0.00022657,2]
[364981646,1749377447283,-1000.0,0.00022657,2]
[364981647,1749377447294,-12500.0,0.00022704,3]
[364981648,1749377447303,-160.0,0.00022704,3]
[364981649,1749377447313,-842.5625,0.00022704,3]
[364981650,1749377447323,-157.72257582,0.00022709,2]
[364981651,1749377447333,-12500.0,0.00022713,3]
[364981652,1749377447343,-12500.0,0.00022721,3]
[364981653,1749377447353,-12500.0,0.0002273,3]
[364981654,1749377447363,-12500.0,0.00022739,3]
[364981655,1749377447374,-12500.0,0.00022739,3]
[364981656,1749377447384,-12500.0,0.00022739,3]
[364981657,1749377447394,-595.88,0.00022739,4]
[364981658,1749377447404,-621.46,0.00022739,4]
[364981659,1749377447415,-460.53,0.00022739,4]
[364981660,1749377447424,-572.71,0.00022739,4]
[364981661,1749377447434,-1377.15,0.00022739,4]
[364981662,1749377447444,-956.96,0.00022739,4]
[364981663,1749377447453,-543.14,0.00022739,4]
[364981664,1749377447463,-440.0,0.00022739,4]
[364981665,1749377447473,-1506.3,0.00022739,4]
[364981666,1749377447483,-1466.18,0.00022739,4]
[364981667,1749377447493,-1390.15,0.00022739,4]
[364981668,1749377447502,-440.0,0.00022739,4]
[364981669,1749377447512,-440.0,0.00022739,4]
[364981670,1749377447522,-871.2,0.00022739,4]
[364981671,1749377447532,-1354.75,0.00022739,4]
[364981672,1749377447542,-1432.59,0.00022739,4]
[364981673,1749377447553,-443.61,0.00022739,4]
[364981674,1749377447562,-500.0,0.00022779,2]
[364981675,1749377447572,-500.0,0.00022828,2]
[364981676,1749377447581,-472.93256885,0.00022915,72]
[364981677,1749377447591,-800.0,0.0002295,2]
[364981678,1749377447601,-153.0,0.00022959,2]
[364981679,1749377447610,-153.0,0.00022959,2]
[364981680,1749377447620,-153.0,0.00022959,2]
[364981681,1749377447629,-7234.31,0.00022967,2]
[364981682,1749377447639,-160.0,0.00023,3]
[364981683,1749377447650,-423.98131849,0.00023,3]
[364981684,1749377447660,-229.60437222,0.00023,3]
[364981685,1749377447670,-500.0,0.00023013,2]
[364981686,1749377447680,-595.88,0.00023013,4]
[364981687,1749377447690,-621.46,0.00023013,4]
[364981688,1749377447701,-460.53,0.00023013,4]
[364981689,1749377447711,-572.71,0.00023013,4]
[364981690,1749377447721,-1377.15,0.00023013,4]
[364981691,1749377447730,-956.96,0.00023013,4]
[364981692,1749377447768,-543.14,0.00023013,4]
[364981693,1749377447778,-440.0,0.00023013,4]
[364981694,1749377447788,-1506.3,0.00023013,4]
[364981695,1749377447797,-1466.18,0.00023013,4]
[364981696,1749377447807,-1390.15,0.00023013,4]
[364981697,1749377447817,-440.0,0.00023013,4]
[364981698,1749377447827,-440.0,0.00023013,4]
[364981699,1749377447837,-871.2,0.00023013,4]
[364981700,1749377447846,-1354.75,0.00023013,4]
[364981701,1749377447856,-1432.59,0.00023013,4]
[364981702,1749377447866,-443.61,0.00023013,4]
[364981703,1749377447877,-172.0,0.00023014,7]
[364981704,1749377447888,-155.0,0.00023014,7]
[364981705,1749377447897,-1300.0,0.00023075,2]
[364981706,1749377447907,-5000.0,0.00023098,2]
[364981707,1749377447919,-800.0,0.0002312,2]
[364981708,1749377447929,-1500.0,0.00023143,2]
[364981709,1749377447939,-151.0,0.00023154,7]
[364981710,1749377447949,-151.0,0.00023154,7]
[364981711,1749377447959,-160.627537,0.00023154,7]
[364981712,1749377447969,-151.0,0.00023154,2]
[364981713,1749377447978,-263.532698,0.00023154,7]
[364981714,1749377447988,-263.532698,0.00023154,7]
[364981715,1749377447998,-152.345615,0.00023154,7]
[364981716,1749377448009,-151.0,0.00023154,7]
[364981717,1749377448018,-151.0,0.00023154,7]
[364981718,1749377448028,-151.0,0.00023154,7]
[364981719,1749377448039,-151.0,0.00023154,7]
[364981720,1749377448049,-545.16430353,0.00023196,2]
[364981721,1749377448059,-1008.73643888,0.00023196,2]
[364981722,1749377448069,-502.56944552,0.00023205,2]
[364981723,1749377448080,-1007.47350341,0.00023205,2]
[364981724,1749377448091,-1500.0,0.00023205,2]
[364981725,1749377448101,-1500.0,0.00023205,2]
[364981726,1749377448111,-1800.0,0.00023205,2]
[364981727,1749377448121,-1500.0,0.00023205,2]
[364981728,1749377448130,-1500.0,0.00023205,2]
[364981729,1749377448140,-595.88,0.00023287,4]
[364981730,1749377448149,-621.46,0.00023287,4]
[364981731,1749377448159,-460.53,0.00023287,4]
[364981732,1749377448170,-572.71,0.00023287,4]
[364981733,1749377448182,-1377.15,0.00023287,4]
[364981734,1749377448192,-956.96,0.00023287,4]
[364981735,1749377448201,-543.14,0.00023287,4]
[364981736,1749377448212,-440.0,0.00023287,4]
[364981737,1749377448223,-1506.3,0.00023287,4]
[364981738,1749377448232,-1466.18,0.00023287,4]
[364981739,1749377448242,-1390.15,0.00023287,4]
[364981740,1749377448255,-204.34629374,0.00023287,4]
[364981741,1749377448266,-440.0,0.00023287,4]
[364981742,1749377448275,-871.2,0.00023287,4]
[364981743,1749377448286,-1354.75,0.00023287,4]
[364981744,1749377448297,-1432.59,0.00023287,4]
[364981745,1749377448307,-443.61,0.00023287,4]
[364981746,1749377448318,-958.761135,0.00023297,3]
[364981747,1749377448328,-151.71151387,0.00023356,2]
[364981748,1749377448338,-1000.0,0.00023397,5]
[364981749,1749377448348,-151.0,0.000234,10]
[364981750,1749377448358,-1534.5,0.000234,7]
[364981751,1749377448369,-159.58732754,0.00023408,2]
[364981752,1749377448379,-500.0,0.0002342,2]
[364981753,1749377448389,-500.0,0.0002342,2]
[364981754,1749377448400,-2000.0,0.00023452,2]
[364981755,1749377448410,-2000.0,0.00023452,2]
[364981756,1749377448419,-2000.0,0.00023452,2]
[364981757,1749377448428,-2000.0,0.00023452,2]
[364981758,1749377448438,-2000.0,0.00023452,2]
[364981759,1749377448448,-2000.0,0.00023452,2]
[364981760,1749377448458,-2000.0,0.00023452,2]
[364981761,1749377448467,-2000.0,0.00023452,2]
[364981762,1749377448478,-2000.0,0.00023452,2]
[364981763,1749377448488,-2000.0,0.00023452,2]
[364981764,1749377448497,-2000.0,0.00023452,2]
[364981765,1749377448507,-2000.0,0.00023452,2]
[364981766,1749377448517,-2000.0,0.00023452,2]
[364981767,1749377448527,-2000.0,0.00023452,2]
[364981768,1749377448537,-2000.0,0.00023452,2]
[364981769,1749377448547,-1865.6946667,0.00023452,2]
[364981770,1749377448558,-364.8515477,0.00023452,2]
[364981771,1749377448568,-364.8515477,0.00023452,2]
[364981772,1749377448578,-364.8515477,0.00023452,2]
[364981773,1749377448588,-364.8515477,0.00023452,2]
[364981774,1749377448599,-364.8515477,0.00023452,2]
[364981775,1749377448609,-364.8515477,0.00023452,2]
[364981776,1749377448620,-364.8515477,0.00023452,2]
[364981777,1749377448630,-500.0,0.00023473,2]
[364981778,1749377448640,-500.0,0.00023473,2]
[364981779,1749377448650,-500.0,0.00023473,2]
[364981780,1749377448660,-37325.33,0.000235,2]
[364981781,1749377448671,-121624.73,0.000235,7]
[364981782,1749377448681,-500.82272851,0.00023547,2]
[364981783,1749377448691,-500.0,0.00023561,2]
[364981784,1749377448701,-595.88,0.00023561,4]
[364981785,1749377448711,-621.46,0.00023561,4]
[364981786,1749377448722,-460.53,0.00023561,4]
[364981787,1749377448732,-572.71,0.00023561,4]
[364981788,1749377448743,-1377.15,0.00023561,4]
[364981789,1749377448754,-956.96,0.00023561,4]
[364981790,1749377448764,-543.14,0.00023561,4]
[364981791,1749377448775,-440.0,0.00023561,4]
[364981792,1749377448784,-1506.3,0.00023561,4]
[364981793,1749377448795,-1466.18,0.00023561,4]
[364981794,1749377448805,-1390.15,0.00023561,4]
[364981795,1749377448815,-440.0,0.00023561,4]
[364981796,1749377448825,-871.2,0.00023561,4]
[364981797,1749377448836,-1354.75,0.00023561,4]
[364981798,1749377448847,-1432.59,0.00023561,4]
[364981799,1749377448858,-443.61,0.00023561,4]
[364981800,1749377448868,-2200.0,0.00023576,2]
[364981801,1749377448878,-158.6873433,0.00023589,2]
[364981802,1749377448889,-153.0,0.00023589,2]
[364981803,1749377448899,-176.7524085,0.00023589,2]
[364981804,1749377448910,-573.126752,0.00023589,2]
[364981805,1749377448920,-176.7524085,0.00023589,2]
[364981806,1749377448930,-158.6873431,0.00023589,2]
[364981807,1749377448940,-573.126752,0.00023589,2]
[364981808,1749377448951,-176.7524085,0.00023589,2]
[364981809,1749377448961,-158.6873433,0.00023589,2]
[364981810,1749377448971,-573.126752,0.00023589,2]
[364981811,1749377448982,-153.0,0.00023589,2]
[364981812,1749377448992,-158.6873431,0.00023589,2]
[364981813,1749377449002,-176.7524085,0.00023589,2]
[364981814,1749377449012,-573.126752,0.00023589,2]
[364981815,1749377449023,-158.6873433,0.00023589,2]
[364981816,1749377449033,-153.0,0.00023589,2]
[364981817,1749377449043,-176.7524085,0.00023589,2]
[364981818,1749377449053,-573.126752,0.00023589,2]
[364981819,1749377449063,-158.6873431,0.00023589,2]
[364981820,1749377449073,-176.7524085,0.00023589,2]
[364981821,1749377449083,-573.126752,0.00023589,2]
[364981822,1749377449094,-158.6873433,0.00023589,2]
[364981823,1749377449104,-176.7524085,0.00023589,2]
[364981824,1749377449115,-153.0,0.00023589,2]
[364981825,1749377449126,-573.126752,0.00023589,2]
[364981826,1749377449137,-151.0,0.00023599,7]
[364981827,1749377449147,-151.0,0.00023599,7]
[364981828,1749377449157,-151.0,0.00023599,7]
[364981829,1749377449167,-167.123882,0.00023599,7]
[364981830,1749377449180,-151.0,0.000236,8]
[364981831,1749377449190,-293.85068442,0.00023613,2]
[364981832,1749377449199,-4922.77,0.00023629,30]
[364981833,1749377449210,-151.0,0.00023629,7]
[364981834,1749377449219,-151.0,0.00023629,7]
[364981835,1749377449230,-151.0,0.00023629,2]
[364981836,1749377449241,-263.532698,0.00023629,7]
[364981837,1749377449252,-263.532698,0.00023629,7]
[364981838,1749377449262,-5000.0,0.00023646,2]
[364981839,1749377449272,-228.6248954,0.0002365,2]
[364981840,1749377449283,-504.04897911,0.00023691,2]
[364981841,1749377449294,-800.0,0.00023699,2]
[364981842,1749377449304,-149191.5321054,0.000237,2]
[364981843,1749377449314,-151.0,0.000237,7]
[364981844,1749377449533,-789.35,0.000237,7]
[364981845,1749377449543,-151.0,0.000237,7]
[364981846,1749377449554,-823.0,0.00023736,2]
[364981847,1749377449564,-2003.96413543,0.00023753,2]
[364981848,1749377449574,-1042.50611979,0.00023753,2]
[364981849,1749377449587,-2000.0,0.00023753,2]
[364981850,1749377449598,-2400.0,0.00023753,2]
[364981851,1749377449609,-1503.42646563,0.00023753,2]
[364981852,1749377449619,-986.0138735,0.00023753,3]
[364981853,1749377449629,-192.3900831,0.00023753,2]
[364981854,1749377449639,-413.4953297,0.00023753,2]
[364981855,1749377449650,-159.0892385,0.00023753,2]
[364981856,1749377449661,-1146.253504,0.00023753,2]
[364981857,1749377449671,-498.9610189,0.00023753,2]
[364981858,1749377449681,-153.0,0.00023753,2]
[364981859,1749377449691,-153.0,0.00023753,2]
[364981860,1749377449701,-153.0,0.00023753,2]
[364981861,1749377449711,-176.7524085,0.00023753,2]
[364981862,1749377449721,-573.126752,0.00023753,2]
[364981863,1749377449731,-153.0,0.00023753,2]
[364981864,1749377449740,-176.7524085,0.00023753,2]
[364981865,1749377449751,-573.126752,0.00023753,2]
[364981866,1749377449762,-573.126752,0.00023753,2]
[364981867,1749377449772,-573.126752,0.00023753,2]
[364981868,1749377449782,-500.0,0.00023773,2]
[364981869,1749377449795,-500.0,0.00023773,2]
[364981870,1749377449804,-562.54574875,0.00023773,2]
[364981871,1749377449815,-501.14289764,0.00023773,2]
[364981872,1749377449826,-292.38738457,0.00023773,2]
[364981873,1749377449835,-151.0,0.00023779,7]
[364981874,1749377449844,-151.0,0.00023779,7]
[364981875,1749377449855,-151.0,0.00023779,7]
[364981876,1749377449865,-151.0,0.00023779,7]
[364981877,1749377449875,-187.304419,0.00023779,7]
[364981878,1749377449885,-151.0,0.00023779,7]
[364981879,1749377449896,-242.836539,0.00023779,7]
[364981880,1749377449906,-200.0,0.00023779,2]
[364981881,1749377449917,-44077.88839359,0.0002378,2]
[364981882,1749377449927,-15609.78476819,0.0002378,2]
[364981883,1749377449938,-278369.16979039,0.0002378,5]
[364981884,1749377450069,-508.11,0.00022191,4]
[364981885,1749377450079,-5997.51867539,0.0002378,5]
[364981886,1749377450144,-359.01011788,0.00019178,2]
[364981887,1749377450154,-213.31488212,0.00022465,4]
[364981888,1749377450167,-294.79511788,0.00022465,4]
[364981889,1749377450178,-508.11,0.00022739,4]
[364981890,1749377450190,-508.11,0.00023013,4]
[364981891,1749377450200,-508.11,0.00023287,4]
[364981892,1749377450210,-508.11,0.00023561,4]
[364981893,1749377450222,-127043.1857326,0.0002378,5]
[364981894,1749377450235,-8588.83708375,0.0002378,5]
[364981895,1749377450247,-8134.37071725,0.0002378,5]
[364981896,1749377452230,1052.26,0.00015922,2]
[364981897,1749377534013,283.43981349,0.00018,90]
[364981901,1749377903503,968.0,0.00025479,120]
[364981902,1749377927029,870.07,0.00015599,2]
[364981903,1749378009140,859.0,0.00015583,2]
[364981904,1749378091709,848.06,0.00015581,2]
[364981905,1749378154543,236.820701,0.00013699,2]
[364981907,1749378173956,929.34,0.00015555,2]
[364981909,1749378255442,763.57100769,0.00015573,2]
[364981910,1749378255467,153.94899231,0.00015573,2]
[364981911,1749378337699,905.84,0.00015572,2]
[364981912,1749378418688,894.31,0.00015565,2]
[364981915,1749378499697,882.93,0.00015561,2]
[364981920,1749378523949,265.1897532,0.0001515,20]
[364981928,1749378583375,871.69,0.00015546,2]
[364981929,1749378628541,411.0,0.00025,120]
[364981946,1749378631818,-1743.38,0.00016286,2]
[364981947,1749378631830,-2615.07,0.00017027,2]
[364981948,1749378631840,-293.9913945,0.00017129,2]
[364981949,1749378631852,-300.0,0.00017587,2]
[364981950,1749378631862,-300.0,0.00017587,2]
[364981951,1749378631872,-10000.0,0.00017588,2]
[364981952,1749378631884,-3486.76,0.00017767,2]
[364981953,1749378631896,-160.51901486,0.00017999,2]
[364981954,1749378631910,-500.0,0.00017999,2]
[364981955,1749378631921,-12947.56810261,0.00018,2]
[364981956,1749378631931,-4358.45,0.00018507,2]
[364981958,1749378631941,-24900.0,0.00018633,2]
[364981960,1749378631952,-187.31150447,0.00019,20]
[364981963,1749378631963,-476.4368904,0.00019078,2]
[364981965,1749378631973,-756.96,0.00019168,3]
[364981967,1749378631983,-500.0,0.00019177,2]
[364981969,1749378631992,-500.0,0.00019177,2]
[364981971,1749378632003,-500.0,0.00019177,2]
[364981973,1749378632012,-443.68857142,0.00019177,2]
[364981975,1749378632021,-500.0,0.00019177,2]
[364981977,1749378632031,-500.0,0.00019177,2]
[364981979,1749378632041,-500.0,0.00019177,2]
[364981981,1749378632051,-500.0,0.00019177,2]
[364981983,1749378632061,-500.0,0.00019177,2]
[364981985,1749378632071,-500.0,0.00019177,2]
[364981986,1749378632083,-597.23654844,0.00019177,2]
[364981987,1749378632093,-500.0,0.00019177,2]
[364981988,1749378632103,-500.0,0.00019177,2]
[364981989,1749378632113,-440.0,0.00019178,2]
[364981990,1749378632123,-440.0,0.00019178,2]
[364981991,1749378632134,-548.52803603,0.00019178,2]
[364981992,1749378632146,-440.0,0.00019178,2]
[364981993,1749378632156,-440.0,0.00019178,2]
[364981994,1749378632166,-440.0,0.00019178,2]
[364981995,1749378632177,-440.0,0.00019178,2]
[364981996,1749378632186,-420.0,0.00019178,2]
[364981997,1749378632196,-440.0,0.00019178,2]
[364981998,1749378632205,-572.59195497,0.00019178,2]
[364981999,1749378632216,-440.0,0.00019178,2]
[364982000,1749378632226,-440.0,0.00019178,2]
[364982001,1749378632235,-440.0,0.00019178,2]
[364982002,1749378632246,-440.0,0.00019178,2]
[364982003,1749378632256,-420.0,0.00019178,2]
[364982004,1749378632266,-420.0,0.00019178,2]
[364982005,1749378632275,-420.0,0.00019178,2]
[364982006,1749378632285,-420.0,0.00019178,2]
[364982007,1749378632295,-550.58978723,0.00019178,2]
[364982008,1749378632304,-420.0,0.00019178,2]
[364982009,1749378632313,-420.0,0.00019178,2]
[364982010,1749378632323,-390.0,0.00019178,2]
[364982011,1749378632334,-440.0,0.00019178,2]
[364982012,1749378632345,-440.0,0.00019178,2]
[364982013,1749378632358,-468.55517041,0.00019178,2]
[364982014,1749378632378,-420.0,0.00019178,2]
[364982015,1749378632389,-448.83827874,0.00019178,2]
[364982016,1749378632401,-266.03177238,0.00019178,2]
[364982017,1749378632411,-440.0,0.00019178,2]
[364982018,1749378632421,-440.0,0.00019178,2]
[364982019,1749378632431,-440.0,0.00019178,2]
[364982020,1749378632440,-440.0,0.00019178,2]
[364982021,1749378632451,-440.0,0.00019178,2]
[364982022,1749378632461,-440.0,0.00019178,2]
[364982023,1749378632471,-440.0,0.00019178,2]
[364982024,1749378632480,-440.0,0.00019178,2]
[364982025,1749378632490,-420.0,0.00019178,2]
[364982026,1749378632501,-440.0,0.00019178,2]
[364982027,1749378632511,-440.0,0.00019178,2]
[364982028,1749378632520,-420.0,0.00019178,2]
[364982029,1749378632530,-440.0,0.00019178,2]
[364982030,1749378632540,-402.44337219,0.00019178,2]
[364982031,1749378632550,-420.0,0.00019178,2]
[364982032,1749378632559,-410.0,0.00019178,2]
[364982033,1749378632569,-420.0,0.00019178,2]
[364982034,1749378632579,-360.0,0.00019178,2]
[364982035,1749378632589,-440.0,0.00019178,2]
[364982036,1749378632598,-440.0,0.00019178,2]
[364982037,1749378632608,-394.864,0.00019178,2]
[364982038,1749378632617,-440.0,0.00019178,2]
[364982039,1749378632628,-410.0,0.00019178,2]
[364982040,1749378632637,-440.0,0.00019178,2]
[364982041,1749378632647,-420.0,0.00019178,2]
[364982042,1749378632659,-440.0,0.00019178,2]
[364982043,1749378632668,-440.0,0.00019178,2]
[364982044,1749378632678,-440.0,0.00019178,2]
[364982045,1749378632688,-440.0,0.00019178,2]
[364982046,1749378632698,-440.0,0.00019178,2]
[364982047,1749378632708,-440.0,0.00019178,2]
[364982048,1749378632719,-440.0,0.00019178,2]
[364982049,1749378632728,-440.0,0.00019178,2]
[364982050,1749378632738,-440.0,0.00019178,2]
[364982051,1749378632748,-440.0,0.00019178,2]
[364982052,1749378632757,-440.0,0.00019178,2]
[364982053,1749378632767,-433.971835,0.00019178,2]
[364982054,1749378632776,-440.0,0.00019178,2]
[364982055,1749378632785,-440.0,0.00019178,2]
[364982056,1749378632794,-440.0,0.00019178,2]
[364982057,1749378632803,-440.0,0.00019178,2]
[364982058,1749378632815,-440.0,0.00019178,2]
[364982059,1749378632825,-440.0,0.00019178,2]